{"text_format":"1","workbook":"xlsx","n_sheets":9,"sheets":["Instructions","APPLICATION PHASE","CALCS","PLACED IN SERVICE PHASE","CALCS2","CALGreen Checklist","Doc & Ver for Scoring","Rehab Verification Quals Final","NC Verification Quals"],"not_rendered":{"charts":0,"images":42,"macros":1,"external_links":0,"defined_names":13,"comments":0,"pivot_tables":0},"unopened":[],"bounds":{"document_bytes":16777216,"sheet_cells":100000,"rows_first":2000,"rows_last":500,"rows_between":2000,"halvings":0,"cell_chars":16384,"cell_head_chars":4096},"cells_cut":0,"cells_raw":0,"read":"whole","date_system":"1900"}

{"sheet":"Instructions","index":0,"n_rows":402,"n_cols":7,"rows_kept":402,"cut":false,"hidden":false,"merged":[[245,1,245,6],[246,1,246,6],[247,1,247,6],[248,1,248,6],[249,1,249,6],[67,1,67,6],[68,1,68,6],[69,1,69,6],[71,1,71,6],[86,1,86,6],[70,1,70,6],[72,1,72,6],[90,1,90,6],[120,1,120,6],[159,1,159,6],[160,1,160,6],[157,1,157,6],[158,1,158,6],[139,1,139,6],[140,1,140,6],[141,1,141,6],[142,1,142,6],[143,1,143,6],[144,1,144,6],[398,1,398,6],[223,1,223,6],[225,1,225,6],[229,1,229,6],[231,1,231,6],[235,1,235,6],[237,1,237,6],[268,1,268,6],[278,1,278,6],[361,1,361,6],[227,1,227,6],[233,1,233,6],[234,1,234,6],[239,1,239,6],[240,1,240,6],[241,1,241,6],[242,1,242,6],[243,1,243,6],[244,1,244,6],[250,1,250,6],[251,1,251,6],[252,1,252,6],[253,1,253,6],[263,1,263,6],[1,1,1,5],[172,1,172,6],[173,1,173,6],[177,1,177,6],[166,1,166,6],[167,1,167,6],[168,1,168,6],[169,1,169,6],[170,1,170,6],[171,1,171,6],[54,1,54,6],[55,1,55,6],[56,1,56,6],[121,1,121,6],[106,1,106,6],[107,1,107,6],[108,1,108,6],[109,1,109,6],[110,1,110,6],[114,1,114,6],[115,1,115,6],[116,1,116,6],[117,1,117,6],[44,1,44,6],[178,1,178,6],[174,1,174,6],[175,1,175,6],[176,1,176,6],[145,1,145,6],[146,1,146,6],[147,1,147,6],[122,1,122,6],[85,1,85,6],[112,1,112,6],[113,1,113,6],[88,1,88,6],[89,1,89,6],[91,1,91,6],[92,1,92,6],[87,1,87,6],[74,1,74,6],[76,1,76,6],[77,1,77,6],[78,1,78,6],[83,1,83,6],[84,1,84,6],[79,1,79,6],[80,1,80,6],[81,1,81,6],[82,1,82,6],[63,1,63,6],[53,1,53,6],[64,1,64,6],[40,1,40,6],[66,1,66,6],[45,1,45,6],[46,1,46,6],[48,1,48,6],[49,1,49,6],[47,1,47,6],[50,1,50,6],[51,1,51,6],[52,1,52,6],[61,1,61,6],[62,1,62,6],[41,1,41,6],[42,1,42,6],[43,1,43,6],[65,1,65,6],[24,1,24,6],[26,1,26,6],[2,1,2,6],[9,1,9,6],[11,1,11,6],[12,1,12,6],[14,1,14,6],[17,1,17,6],[15,1,15,6],[16,1,16,6],[20,1,20,6],[18,1,18,6],[19,1,19,6],[3,1,3,6],[4,1,4,6],[23,1,23,6],[5,1,5,6],[6,1,6,6],[8,1,8,6],[7,1,7,6],[25,1,25,6],[184,1,184,6],[138,1,138,6],[186,1,186,6],[27,1,27,6],[28,1,28,6],[29,1,29,6],[124,1,124,6],[127,1,127,6],[128,1,128,6],[161,1,161,6],[125,1,125,6],[181,1,181,6],[118,1,118,6],[119,1,119,6],[111,1,111,6],[31,1,31,6],[32,1,32,6],[34,1,34,6],[35,1,35,6],[36,1,36,6],[30,1,30,6],[37,1,37,6],[38,1,38,6],[39,1,39,6],[187,1,187,6],[129,1,129,6],[130,1,130,6],[131,1,131,6],[132,1,132,6],[133,1,133,6],[134,1,134,6],[135,1,135,6],[136,1,136,6],[137,1,137,6],[148,1,148,6],[149,1,149,6],[150,1,150,6],[151,1,151,6],[153,1,153,6],[154,1,154,6],[155,1,155,6],[156,1,156,6],[152,1,152,6],[180,1,180,6],[179,1,179,6],[185,1,185,6],[182,1,182,6],[183,1,183,6],[188,1,188,6],[189,1,189,6],[190,1,190,6],[191,1,191,6],[192,1,192,6],[193,1,193,6],[194,1,194,6],[195,1,195,6],[196,1,196,6],[197,1,197,6],[198,1,198,6],[199,1,199,6],[200,1,200,6],[201,1,201,6],[202,1,202,6],[203,1,203,6],[204,1,204,6],[205,1,205,6],[215,1,215,6],[216,1,216,6],[217,1,217,6],[219,1,219,6],[220,1,220,6],[221,1,221,6],[222,1,222,6],[224,1,224,6],[206,1,206,6],[207,1,207,6],[208,1,208,6],[209,1,209,6],[210,1,210,6],[211,1,211,6],[212,1,212,6],[213,1,213,6],[214,1,214,6],[218,1,218,6],[264,1,264,6],[265,1,265,6],[266,1,266,6],[267,1,267,6],[276,1,276,6],[277,1,277,6],[281,1,281,6],[280,1,280,6],[274,1,274,6],[275,1,275,6],[273,1,273,6],[272,1,272,6],[254,1,254,6],[255,1,255,6],[256,1,256,6],[257,1,257,6],[258,1,258,6],[259,1,259,6],[260,1,260,6],[261,1,261,6],[262,1,262,6],[282,1,282,6],[283,1,283,6],[296,1,296,6],[297,1,297,6],[298,1,298,6],[287,1,287,6],[288,1,288,6],[289,1,289,6],[290,1,290,6],[291,1,291,6],[292,1,292,6],[293,1,293,6],[294,1,294,6],[295,1,295,6],[284,1,284,6],[285,1,285,6],[286,1,286,6],[335,1,335,6],[336,1,336,6],[337,1,337,6],[338,1,338,6],[339,1,339,6],[340,1,340,6],[312,1,312,6],[313,1,313,6],[334,1,334,6],[315,1,315,6],[330,1,330,6],[331,1,331,6],[332,1,332,6],[333,1,333,6],[322,1,322,6],[323,1,323,6],[324,1,324,6],[325,1,325,6],[326,1,326,6],[327,1,327,6],[328,1,328,6],[316,1,316,6],[317,1,317,6],[318,1,318,6],[347,1,347,6],[348,1,348,6],[349,1,349,6],[341,1,341,6],[342,1,342,6],[343,1,343,6],[344,1,344,6],[345,1,345,6],[346,1,346,6],[368,1,368,6],[369,1,369,6],[370,1,370,6],[365,1,365,6],[366,1,366,6],[367,1,367,6],[350,1,350,6],[351,1,351,6],[352,1,352,6],[353,1,353,6],[354,1,354,6],[355,1,355,6],[356,1,356,6],[357,1,357,6],[358,1,358,6],[359,1,359,6],[360,1,360,6],[363,1,363,6],[319,1,319,6],[320,1,320,6],[321,1,321,6],[314,1,314,6],[396,1,396,6],[378,1,378,6],[379,1,379,6],[380,1,380,6],[381,1,381,6],[382,1,382,6],[383,1,383,6],[384,1,384,6],[389,1,389,6],[394,1,394,6],[395,1,395,6],[385,1,385,6],[386,1,386,6],[387,1,387,6],[388,1,388,6],[390,1,390,6],[392,1,392,6],[375,1,375,6],[376,1,376,6],[377,1,377,6]]}
[]
[null,"WORKSHEET INSTRUCTIONS",null,null,null,null,"v 1.04"]
[]
[null,"General Instructions:"]
[null,"* In order for worksheet to work, you must enable macros.*"]
[]
[null,"Printing Instructions: In order to print these worksheets, select Print.  Under the scaling section, please select \"Fit all Columns on One Page\""]
[]
[null,"For  assistance with this worksheet, please contact Rachel Harmon at the Assocation for Energy Affordability (510.431.1795)."]
[null,"TAB 1: APPLICATION PHASE"]
[]
[null,"This tab is intended to be used during the TCAC application phase for projects applying for points under the Sustainable Building Methods Section (Section 6).  This tab will calculate  "]
[null,"the number of application points for your projects based off of user-inputs."]
[]
[null,"General Information:"]
[null,"Building Name: Please input the name of the building, as shown on the TCAC application documents."]
[null,"Building Address: Please input the address of the building, as shown on the TCAC application documents."]
[null,"Modeler Name: Please input the energy modeler name."]
[null,"Modeler Phone # and E-mail: Please input the contact information for the energy modeler."]
[null,"Application Date: Please input the application date.  Note that this cell defaults to today's date unless changed by the applicant."]
[null,"Modeler Company: Please input the company that the energy modeler is employed by."]
[]
[null,"Options for Modeler Certifications:"]
[null,"Modeler CEPE ID #: Note that it is required that the energy modeler be CEPE certified (Res certification for low-rise buildings and Non-Res for high-rise), and"]
[null," For rehab projects, Modeler HERS Whole House (HERS II) ID #:  It is required that the energy modeler be HERS II certified for all rehab projects"]
[]
[null,"Project Type:"]
[null,"Select project type:  Based on the selection here, the applicant will earn points under either TCAC sections: "]
[null,"10325(C)(6)(A), 10325(C)(6)(B), and 10325(C)(6)(C) for New Construction or Adaptive Reuse Projects"]
[null,"or"]
[null,"10325(C)(6)(D) and 10325(C)(6)(E) for Rehabilitation Projects"]
[]
[null,"New Construction Low Rise:"]
[]
[null,"Insert \"Percent Better than Standard\" from CF-1R: For new construction low-rise projects, the energy modeler will reference the \"Percent Better than Standard\" shown on the CF-1R generated in "]
[null,"EnergyPro (Res T-24) or MicroPas.  This number will be used to directly calculate the points under TCAC Section 10325(C)(6)(B)."]
[]
[]
[]
[]
[]
[]
[]
[]
[]
[]
[]
[]
[]
[]
[null,"Green Building Rating Program associated with project: This input will be used to calculate points under TCAC Sections 10325(C)(6)(A) and 10325(C)(6)(C).  Projects that commit to developing"]
[null,"projects in accordance to any of the identified programs will get 5 points.  Additional points are awarded for higher certification levels per TCAC Section 10325(C)(6)(C). "]
[]
[]
[]
[]
[]
[]
[]
[]
[]
[]
[]
[]
[]
[]
[]
[]
[]
[]
[]
[null,"Required Documentation for Low-Rise New Construction Projects: CF1-R, .Bld or .mp8 file, Summary of Proposed Measures, CALGreen Mandatory Measures Checklist, Green Building Rating Program"]
[null,"initial checklist."]
[]
[null,"New Construction High Rise:"]
[]
[null,"Insert the following values from the PERF-1C: For new construction high-rise projects, the energy modeler will enter the requested values as shown on the PERF-1C generated in EnergyPro (Res T-24)"]
[null,"or MicroPas.  These values will be used to calculate an adjusted percentage improvement which is equal to the percentage improvement listed in EnergyPro after the removal of the energy use"]
[null,"associated with lighting, receptacle, process, and process lighting.  In the project example below, the EnergyPro calculated improvement of 15.5% would be adjusted to an improvement of 21.8% after  "]
[null,"the removal of these four values.  Points under TCAC Section 10325(C)(6)(B) are awarded based on this adjusted percentage."]
[]
[]
[]
[]
[]
[]
[]
[]
[]
[]
[]
[]
[]
[]
[]
[]
[]
[]
[]
[]
[]
[]
[]
[]
[]
[]
[null,"Green Building Rating Program associated with project: This input will be used to calculate points under TCAC Sections 10325(C)(6)(A) and 10325(C)(6)(C).  Projects that commit to developing"]
[null,"projects in accordance to any of the identified programs will get 5 points.  Additional points are awarded for higher certification levels."]
[]
[]
[]
[]
[]
[]
[]
[]
[]
[]
[]
[]
[]
[]
[]
[]
[null,"Required Documentation for High Rise New Construction Projects: PERF-1C, .Bld, Summary of Proposed Measures, CALGreen Mandatory Measures Checklist, Green Building Rating Program"]
[null,"initial checklist."]
[]
[null,"Rehab Low Rise:"]
[]
[null,"Insert \"TDV Energy\" from ECON-2: For low-rise rehab construction projects, the energy modeler will reference the \"TDV\" values shown on the ECON-2 generated in EnergyPro "]
[null,"(Res Performance).  If the modeler is using a one model approach where all improvements are modeled under the Alternatives tab in EnergyPro, only 1 ECON-2 will be needed for completion of"]
[null,"this application.  If the modeler is using a two model approach, with one model representing the \"existing\" conditions, and one model representing the \"improved\" conditions, the modeler will need "]
[null,"to generate an ECON-2 for each of his or her models.  The percent improvement between existing and improved TDV will be used to calculate points under TCAC Section 10325(C)(6)(D). "]
[]
[]
[]
[]
[]
[]
[]
[]
[]
[]
[]
[]
[]
[]
[]
[]
[null,"Required Documentation for Low Rise Rehab Projects: ECON-2 (2 are needed if using 2 models), .Bld file (2 are needed if using 2 models), Summary of Proposed Measures, CALGreen Mandatory "]
[null,"Measures Checklist (See CALGreen Checklist Tab), Project plans, HERCC Report."]
[]
[null,"For more information on how to write a HERCC Audit Report, click here."]
[]
[null,"Rehab High Rise:"]
[]
[null,"Insert \"TDV Energy\" from ECON-2: For high-rise rehab construction projects, the energy modeler will reference the \"TDV\" values shown on the ECON-2 generated in EnergyPro "]
[null,"(Non-Res Performance).  If the modeler is using a one model approach where all improvements are modeled under the Alternatives tab in EnergyPro, only 1 ECON-2 will be needed for completion of"]
[null,"this application.  If the modeler is using a two model approach, with one model representing the \"existing\" conditions, and one model representing the \"improved\" conditions, the modeler will need "]
[null,"to generate an ECON-2 for each of his or her models.  The percent improvement between existing and improved TDV will be used to calculate points under TCAC Section 10325(C)(6)(D). "]
[]
[null,"NOTE: \"TDV Energy\" will only appear on the ECON-2 form for high-rise projects in EnergyPro version 5.1.7.1 and later."]
[]
[]
[]
[]
[]
[]
[]
[]
[]
[]
[]
[]
[]
[]
[]
[null,"Required Documentation for High Rise Rehab Projects: ECON-2 (2 are needed if using 2 models), .Bld file (2 are needed if using 2 models), Summary of Proposed Measures, CALGreen Mandatory "]
[null,"Measures Checklist (See CALGreen Checklist Tab), Project plans, HERCC Report."]
[]
[null,"For more information on how to write a HERCC Audit Report, click here."]
[]
[null,"Additional Rehab Measures:"]
[]
[null,"For rehab low- and high-rise buildings, additional points can be awarded for the following measures under TCAC Section 10325(c)(6)(E):"]
[]
[]
[]
[]
[]
[]
[]
[]
[]
[]
[]
[]
[]
[]
[]
[]
[]
[]
[]
[]
[]
[]
[]
[]
[]
[]
[]
[]
[]
[]
[]
[]
[]
[]
[]
[null,"Calculated Energy Improvement and TCAC Sustainable Building Methods Points:"]
[]
[null,"This section will calculate modeled energy improvement based on the user inputs described above.  Note that a 30% improvement over 2008 Title-24 is required for all New Construction/Adaptive Reuse "]
[null,"projects received after June 30, 2014, and a 10% improvement over existing is required for all Rehabilitation Projects.  The spreadsheet will flag any calculated percentages that do not meet this requirement.  "]
[null,"Based on the percent improvement, green building rating program goals, and/or aditional rehab measures, a point total will be calculated.  This point total will be capped at 10 points per TCAC regulations."]
[null,"The spreadsheet will flag when total points are above 10 in this section."]
[]
[null,"Summary of Proposed Measures:"]
[]
[null,"In this section, the energy modeler will describe all the modeled improvements over Title-24 or existing conditions.  These conditions must be verified by a third party HERS Whole House (HERS II) rater.  The qualified rater will propose a means of verification (such as plan check, on-site photo documentation, etc) and initial their willingness to verify these measures once installed.  The verifier must provide their name, contact information, company name, and HERS II rater ID number.  This section must be completed for ALL projects."]
[]
[null,"TAB 2: PLACED IN SERVICE PHASE"]
[]
[null,"This tab is intended to be used during the TCAC placed in service phase for projects applying for points under the Sustainable Building Methods Section (Section 6).  This tab will note any changes to the"]
[null,"modeled energy improvement since the application phase and ask the modeler to explain those changes.  Changes to the model may be because different products were used, changes in scope of"]
[null,"work, etc.  Any such changes will be flagged in red text."]
[]
[null,"New Construction Low Rise:"]
[]
[null,"Insert \"Percent Better than Standard\" from CF-1R: For new construction low-rise projects, the energy modeler will reference the \"Percent Better than Standard\" shown on the CF-1R generated in "]
[null,"EnergyPro (Res T-24) or MicroPas.  This number will be used to calculate the points under TCAC Section 10325(C)(6)(B)."]
[]
[]
[]
[]
[]
[]
[]
[]
[]
[]
[]
[]
[]
[]
[]
[null,"Green Building Rating Program associated with project: This input will be used to calculate points under TCAC Sections 10325(C)(6)(A) and 10325(C)(6)(C).  Projects that commit to developing"]
[null,"projects in accordance to any of the identified programs will get 5 points.  Additional points are awarded for higher certification levels per TCAC Section 10325(C)(6)(C). "]
[]
[]
[]
[]
[]
[]
[]
[]
[]
[]
[]
[]
[]
[]
[]
[]
[null,"Please Explain any Changes to the Energy Model since the Application Phase: Here the modeler can explain any changes to the energy model that have occurred since the application phase.   Changes "]
[null,"to the model may be because different products were used, changes to the scope of work, etc."]
[]
[null,"Required Documentation for Low Rise New Construction Projects: CF1-R, .Bld or .mp8 file, Summary of Installed Measures & Statement of Completion, CALGreen Mandatory Measures Checklist, Green "]
[null,"Building Rating Program Label, Project Plans, Equipment Specifications, Bills of Lading for Appliances."]
[]
[null,"New Construction High Rise:"]
[]
[null,"Insert the following values from the PERF-1C: For new construction high-rise projects, the energy modeler will enter the requested values as shown on the PERF-1C generated in EnergyPro (Res T-24)"]
[null,"or MicroPas.  These values will be used to calculate an adjusted percentage improvement which is equal to the percentage improvement listed in EnergyPro after the removal of the energy use"]
[null,"associated with lighting, receptacle, process, and process lighting.  In the project example below, the EnergyPro calculated improvement of 15.5% would be adjusted to an improvement of 21.8% after  "]
[null,"the removal of these four values.  Points under TCAC Section 10325(C)(6)(B) are awarded based on this adjusted percentage."]
[]
[]
[]
[]
[]
[]
[]
[]
[]
[]
[]
[]
[]
[]
[]
[]
[]
[]
[]
[]
[]
[]
[]
[]
[]
[]
[null,"Green Building Rating Program associated with project: This input will be used to calculate points under TCAC Sections 10325(C)(6)(A) and 10325(C)(6)(C).  Projects that commit to developing"]
[null,"projects in accordance to any of the identified programs will get 5 points.  Additional points are awarded for higher certification levels."]
[]
[]
[]
[]
[]
[]
[]
[]
[]
[]
[]
[]
[]
[]
[]
[]
[null,"Please Explain any Changes to the Energy Model since the Application Phase: Here the modeler can explain any changes to the energy model that have occurred since the application phase.   Changes "]
[null,"to the model may be because different products were used, changes to the scope of work, etc."]
[]
[null,"Required Documentation for High Rise New Construction Projects: PERF-1C, .Bld, Summary of Installed Measures & Statement of Completion, CALGreen Mandatory Measures Checklist, "]
[null,"Green Building Rating Program Label, Project Plans, Equipment Specifications, Bills of Ladling for Appliances."]
[]
[null,"Rehab Low Rise:"]
[]
[null,"Insert \"TDV Energy\" from ECON-2: For low-rise rehab construction projects, the energy modeler will reference the \"TDV\" values shown on the ECON-2 generated in EnergyPro "]
[null,"(Res Performance).  If the modeler is using a one model approach where all improvements are modeled under the Alternatives tab in EnergyPro, only 1 ECON-2 will be needed for completion of"]
[null,"this application.  If the modeler is using a two model approach, with one model representing the \"existing\" conditions, and one model representing the \"improved\" conditions, the modeler will need "]
[null,"to generate an ECON-2 for each of his or her models.  The percent improvement between existing and improved TDV will be used to calculate points under TCAC Section 10325(C)(6)(D). "]
[]
[]
[]
[]
[]
[]
[]
[]
[]
[]
[]
[]
[]
[]
[]
[null,"Please Explain any Changes to the Energy Model since the Application Phase: Here the modeler can explain any changes to the energy model that have occurred since the application phase.   Changes "]
[null,"to the model may be because different products were used, changes to the scope of work, etc."]
[]
[null,"Required Documentation for Low Rise Rehab Projects: ECON-2 (2 are needed if using 2 models), .Bld file (2 are needed if using 2 models), Summary of Installed Measures & Statement of Completion, "]
[null,"CALGreen Mandatory Measures Checklist, Project Plans, Equipment Specifications, Bills of Lading for Appliances."]
[]
[null,"Rehab High Rise:"]
[]
[null,"Insert \"TDV Energy\" from ECON-2: For high-rise rehab construction projects, the energy modeler will reference the \"TDV\" values shown on the ECON-2 generated in EnergyPro "]
[null,"(Non-Res Performance).  If the modeler is using a one model approach where all improvements are modeled under the Alternatives tab in EnergyPro, only 1 ECON-2 will be needed for completion of"]
[null,"this application.  If the modeler is using a two model approach, with one model representing the \"existing\" conditions, and one model representing the \"improved\" conditions, the modeler will need "]
[null,"to generate an ECON-2 for each of his or her models.  The percent improvement between existing and improved TDV will be used to calculate points under TCAC Section 10325(C)(6)(D). "]
[]
[null,"NOTE: \"TDV Energy\" will only appear on the ECON-2 form for high-rise projects in EnergyPro version 5.1.7.1 and later."]
[]
[]
[]
[]
[]
[]
[]
[]
[]
[]
[]
[]
[]
[]
[]
[null,"Please Explain any Changes to the Energy Model since the Application Phase: Here the modeler can explain any changes to the energy model that have occurred since the application phase.   Changes "]
[null,"to the model may be because different products were used, changes to the scope of work, etc."]
[]
[null,"Required Documentation for High Rise Rehab Projects: ECON-2 (2 are needed if using 2 models), .Bld file (2 are needed if using 2 models), Summary of Installed Measures & Statement of Completion, "]
[null,"CALGreen Mandatory Measures Checklist, Project Plans, Equipment Specifications, Bills of Lading for Appliances."]
[]
[null,"Summary of Installed Measures & Statement of Completion:"]
[]
[null,"This section will describe all the modeled improvements over Title-24 or existing conditions as reported in the application phase by the modeler and the proposed verification as reported by the"]
[null,"third party project verifier (HERS Whole House rater).   The verifier will provide a short description of the installed measure, and indicate whether it was installed to meet the intent of the energy model."]
[null,"By initialing this form, the HERS rater is certifying that they have documentated the project's compliance with associated energy code requirements and modeled expectations.  They agree to provide"]
[null,"proof of verification to TCAC if required."]
[]
[]
[]
[null,"Version History: 1.04 - change to high-rise rehab calculation engine.  Lock of application phase and PIS phase sheets.  Unlock of 1 cell in CalGreen Checklist sheet.  Fix of cutoff cells in instruction and CalGreen sheets."]

{"sheet":"APPLICATION PHASE","index":1,"n_rows":129,"n_cols":7,"rows_kept":129,"cut":false,"hidden":false,"merged":[[128,2,128,3],[125,1,125,6],[118,3,118,4],[119,3,119,4],[120,3,120,4],[121,3,121,4],[122,3,122,4],[123,3,123,4],[128,5,128,6],[56,1,56,6],[57,1,57,6],[70,1,70,6],[71,1,71,6],[83,1,83,6],[117,3,117,4],[110,3,110,4],[111,3,111,4],[112,3,112,4],[108,3,108,4],[114,3,114,4],[113,3,113,4],[115,3,115,4],[116,3,116,4],[88,2,88,3],[91,2,91,3],[97,2,97,3],[84,1,84,6],[85,1,85,6],[99,1,99,6],[109,3,109,4],[127,2,127,3],[127,5,127,6],[9,1,9,6],[55,1,55,6],[69,1,69,6],[100,1,100,6],[106,1,106,6],[105,1,105,6],[14,1,14,6],[102,1,102,2],[103,1,103,2],[26,1,26,6],[27,1,27,6],[25,1,25,6],[33,1,33,6],[46,1,46,6],[1,1,1,5],[2,2,2,3],[3,2,3,3],[8,1,8,6],[2,5,2,6],[3,5,3,6],[6,2,6,3],[5,5,5,6],[5,2,5,3],[4,2,4,3],[4,4,4,6],[6,4,6,6],[13,1,13,6]]}
[]
[null,"TCAC Sustainable Building Methods Worksheet - APPLICATION PHASE",null,null,null,null,{"$f":"Instructions!G2","v":"v 1.04"}]
[null,"Building Name:",null,null,"Building Address:"]
[null,"Modeler Name:",null,null,"Modeler Company:"]
[null,"Modeler CEPE ID #:",null,null,"Required for all rehab projects:"]
[null,"Modeler Phone # and E-mail:",null,null,"Modeler HERS Whole House Rater ID #:"]
[null,"Application Date:",{"$f":"TODAY()","v":"2014-09-05"}]
[]
[null,"Worksheet instructions: Please ensure that excel macros are enabled.  Fill the worksheet out from top to bottom."]
[null,"Please fill out all fields, marking fields that do not apply to your specific project with an \"N/A.\""]
[]
[null,null,null,"Select Project Type:","Please Select"]
[]
[null," New Construction Low-Rise:"]
[null,"For new construction low-rise projects, the energy modeler will reference the \"Percent Better than Standard\" shown on the CF-1R generated in EnergyPro (Res T-24) or MicroPas."]
[]
[null,null,"Insert \"Percent Better than Standard\" from CF-1R:"]
[null,null,"Green Building Rating Program associated with project:",null,"None"]
[]
[null,null,"For New Construction Low-Rise Projects, the following documentation will be submitted with this application: "]
[null,null,"CF1-R"]
[null,null,".Bld or .mp8 file"]
[null,null,"Summary of Proposed Measures (below)"]
[null,null,"CALGreen Mandatory Measures Checklist (See CALGreen Checklist Tab)"]
[null,null,{"$f":"IF(E18=\"None\",\" \",IF(E18=\"GreenPoint Rating (less than 100 Points)\",\"Initial Green Point Rating Checklist\",IF(E18=\"GreenPoint Rating (100-124 Points)\",\"Initial Green Point Rating Checklist\",IF(E18=\"GreenPoint Rating (125+ Points)\",\"Initial Green Point Rating Checklist\",IF(E18=\"Enterprise Green Communities\",\"Initial Green Communities Checklist\",\"Initial LEED Checklist\")))))","v":" "}]
[]
[null,"New Construction High-Rise:"]
[null,"For new construction high-rise projects, the energy modeler will reference the following values shown on the PERF-1C generated in EnergyPro (Non-Res T-24) or MicoPas.  Note that the"]
[null,"improvement percentage shown in the modeling software will be adjusted, as described in the Instructions tab."]
[]
[null,null,"Insert  \"Standard Design\" Annual TDV Energy Use (TOTALS) from PERF-1C:"]
[null,null,"Insert  \"Proposed Design\" Annual TDV Energy Use (TOTALS) from PERF-1C:"]
[]
[null,"The following four end uses will be subtracted from the total as you enter them:"]
[null,null,"Insert  \"Standard Design\" Lighting TDV Energy Use from PERF-1C:"]
[null,null,"Insert  \"Proposed Design\" Lighting TDV Energy Use from PERF-1C:"]
[]
[null,null,"Insert  \"Standard Design\" Receptacle TDV Energy Use from PERF-1C:"]
[null,null,"Insert  \"Proposed Design\" Receptable TDV Energy Use from PERF-1C:"]
[]
[null,null,"Insert  \"Standard Design\" Process TDV Energy Use from PERF-1C:"]
[null,null,"Insert  \"Proposed Design\" Process TDV Energy Use from PERF-1C:"]
[]
[null,null,"Insert  \"Standard Design\" Process Lighting TDV Energy Use from PERF-1C:",null,null,{"$f":"CALCS!C16","v":0}]
[null,null,"Insert  \"Proposed Design\" Process Ligthing TDV Energy Use from PERF-1C:"]
[]
[null,"Green Building Program:"]
[null,null,"Green Building Rating Program associated with project:",null,"None"]
[]
[null,null,"For New Construction High-Rise Projects, the following documentation will be submitted with this application: "]
[null,null,"PERF-1C"]
[null,null,".Bld or .mp8 file"]
[null,null,"Summary of Proposed Measures (below)"]
[null,null,"CALGreen Mandatory Measures Checklist (See CALGreen Checklist Tab)"]
[null,null,{"$f":"IF(E48=\"None\",\" \",IF(E48=\"GreenPoint Rating (less than 100 Points)\",\"Initial Green Point Rating Checklist\",IF(E48=\"GreenPoint Rating (100-124 Points)\",\"Initial Green Point Rating Checklist\",IF(E48=\"GreenPoint Rating (125+ Points)\",\"Initial Green Point Rating Checklist\",IF(E48=\"Enterprise Green Communities\",\"Initial Green Communities Checklist\",\"Initial LEED Checklist\")))))","v":" "}]
[]
[null,"Rehab Low-Rise:"]
[null,"For low-rise rehab construction projects, the energy modeler will reference the \"TDV Energy\" values shown on the ECON-2 generated in EnergyPro (Res Performance)."]
[]
[null,null,"Insert existing building \"TDV Energy (kBtu/ft2-yr)\" from ECON-2:"]
[null,null,"Insert improved building \"TDV Energy (kBtu/ft2-yr)\" from ECON-2:"]
[]
[null,null,"For Rehab Low-Rise Projects, the following documentation will be submitted with this application: "]
[null,null,"ECON-2 (2 are needed if using 2 models)"]
[null,null,".Bld file (2 are needed if using 2 models)"]
[null,null,"Summary of Proposed Measures (below)"]
[null,null,"CALGreen Mandatory Measures Checklist (See CALGreen Checklist Tab)"]
[null,null,"Project Plans"]
[null,null,"HERCC Report"]
[]
[null,"Rehab High-Rise:"]
[null,"For high-rise rehab construction projects, the energy modeler will reference the \"TDV Energy\" values shown on the ECON-2 generated in EnergyPro (Non-Res Performance)."]
[]
[null,null,"Insert existing building \"TDV Energy (kBtu/ft2-yr)\" from ECON-2:"]
[null,null,"Insert improved building \"TDV Energy (kBtu/ft2-yr)\" from ECON-2:"]
[]
[null,null,"For Rehab High-Rise Projects, the following documentation will be submitted with this application: "]
[null,null,"ECON-2 (2 are needed if using 2 models)"]
[null,null,".Bld file (2 are needed if using 2 models)"]
[null,null,"Summary of Proposed Measures (below)"]
[null,null,"CALGreen Mandatory Measures Checklist (See CALGreen Checklist Tab)"]
[null,null,"Project Plans"]
[null,null,"HERCC Report"]
[]
[null,"Additional Rehab Measures:"]
[null,"The following measures earn additional points for Rehab Low- and High-Rise Projects."]
[]
[null,null,"Will a renewable system (Solar PV, Solar Thermal) be installed?"]
[null,null,"None of the above"]
[]
[null,null,"Is the building converting from master metering to individual or sub-metering for all tenants?"]
[null,null,"No"]
[]
[null,null,"Will the building establish sustainable building management practices, including ALL of the following?:"]
[null,null,"1. Develop project-specific maintenance manual, including information on all energy and green building features"]
[null,null,"2. Certify building management staff in sustainable building operations (BPI Multifamily Building Operator or equivalent)"]
[null,null,"3. Undertake formal building systems commissioning, retro-commissioning, or re-commissioning"]
[null,null,"No"]
[]
[null,"Calculated Energy Improvement:"]
[null,"THIS SECTION WILL BE AUTOMATICALLY CALCULATED WITH THE INPUTS ABOVE."]
[]
[null,"Calculated Percent Better than T-24:",null,{"$f":"IF(E12=\"New Construction Low-Rise\",E17,IF(E12=\"New Construction High-Rise\",CALCS!C16,\"Percent Calculated Here\"))","v":"Percent Calculated Here"}]
[null,"Calculated Percent Better than Existing:",null,{"$f":"IF(E12=\"Rehab Low-Rise\",CALCS!A32,IF(E12=\"Rehab High-Rise\",CALCS!G32,\"Percent Calculated Here\"))","v":"Percent Calculated Here"}]
[null,null,{"$f":"IF(D104<10%,\"WARNING: PROJECT DOES NOT CURRENTLY MEET MINIMUM IMPROVEMENT THRESHOLD OF 10% OVER EXISTING!\",IF(D103<30%,\"WARNING: PROJECT DOES NOT CURRENTLY MEET MINIMUM IMPROVEMENT THRESHOLD OF PERCENT BETTER THAN TITLE 24!\",\" \"))","v":" "}]
[null,"Summary of Proposed Measures:"]
[null,"The third party verifier will describe below all proposed energy savings measures in the energy model and proposed means of verification.  This section shall be completed for ALL projects."]
[]
[null,null,"Proposed Energy Savings Measure:","Proposed Means of Verification:",null,"Initials of Verifier:"]
[null,"Measure #1"]
[null,"Measure #2"]
[null,"Measure #3"]
[null,"Measure #4"]
[null,"Measure #5"]
[null,"Measure #6"]
[null,"Measure #7"]
[null,"Measure #8"]
[null,"Measure #9"]
[null,"Measure #10"]
[null,"Measure #11"]
[null,"Measure #12"]
[null,"Measure #13"]
[null,"Measure #14"]
[null,"Measure #15"]
[]
[null,"By initialing the above, I agree to verify the installed measures, and provide photo documentation of installed measures if requested by TCAC."]
[]
[null,"Verifier Name:",null,null,"Verifier Company:"]
[null,"Verifier Phone #:",null,null,"Verifier HERS Whole House Rater ID #:"]

{"sheet":"CALCS","index":2,"n_rows":45,"n_cols":8,"rows_kept":45,"cut":false,"hidden":true,"merged":[]}
["NEW CONSTRUCTION"]
[]
["Low Rise"]
[0,0]
[0.17499999999999999,2]
[0.2,3]
[0.25,5]
["POINTS IF LOW RISE:",{"$f":"INDEX(B4:B7,MATCH('APPLICATION PHASE'!E17,A4:A7,1))","v":0}]
[]
["High Rise"]
[0,0]
[0.17499999999999999,3]
[0.2,5]
["POINTS IF HIGH RISE:",{"$f":"INDEX(B11:B13,MATCH(C16,A11:A13,1))","v":0},{"$f":"'APPLICATION PHASE'!E31-'APPLICATION PHASE'!E35-'APPLICATION PHASE'!E38-'APPLICATION PHASE'!E41-'APPLICATION PHASE'!E44","v":0},"adjusted TDV"]
[null,null,{"$f":"'APPLICATION PHASE'!E32-'APPLICATION PHASE'!E36-'APPLICATION PHASE'!E39-'APPLICATION PHASE'!E42-'APPLICATION PHASE'!E45","v":0},"adjusted TDV"]
["TOTAL POINTS:",{"$f":"IF('APPLICATION PHASE'!E12=\"New Construction Low-Rise\",CALCS!B8,IF('APPLICATION PHASE'!E12=\"New Construction High-Rise\",CALCS!B14,\"0\"))","v":"0"},{"$f":"IF(C14=0,0,(C14-C15)/C14)","v":0},"adjusted improvement"]
[]
[]
["None",0]
["GreenPoint Rating (Less than 100 Points)",5]
["GreenPoint Rating (100-124 Points)",8]
["GreenPoint Rating (125+ Points)",10]
["LEED (less than Silver)",5]
["LEED (Silver)",8]
["LEED (Gold+)",10]
["Enterprise Green Communities",5]
[]
["POINTS:",{"$f":"IF('APPLICATION PHASE'!E12=\"New Construction Low-Rise\",VLOOKUP('APPLICATION PHASE'!E18,CALCS!A19:B26,2,FALSE),IF('APPLICATION PHASE'!E12=\"New Construction High-Rise\",VLOOKUP('APPLICATION PHASE'!E48,CALCS!A19:B26,2,FALSE),0))","v":0}]
[]
["REHAB CALC"]
[]
[{"$f":"IF('APPLICATION PHASE'!E60=0,0,('APPLICATION PHASE'!E60-'APPLICATION PHASE'!E61)/'APPLICATION PHASE'!E60)","v":0},"Percent improvement (low-rise)",null,null,null,null,{"$f":"IF('APPLICATION PHASE'!E75=0,0,('APPLICATION PHASE'!E74-'APPLICATION PHASE'!E75)/'APPLICATION PHASE'!E74)","v":0},"Percent improvement (high-rise)"]
[]
[0,0]
[0.15,3]
[0.2,5]
[0.25,7]
[0.3,10]
[]
["POINTS:",{"$f":"IF('APPLICATION PHASE'!E12=\"Rehab Low-Rise\",INDEX(B34:B38,MATCH(A32,A34:A38,1)),IF('APPLICATION PHASE'!E12=\"Rehab High-Rise\",INDEX(B34:B38,MATCH(G32,A34:A38,1))))","v":false}]
["REHAB EXTRA POINTS:"]
[{"$f":"IF('APPLICATION PHASE'!C89=\"None of the above\",0,3)","v":0}]
[{"$f":"IF('APPLICATION PHASE'!C92=\"No\",0,3)","v":0}]
[{"$f":"IF('APPLICATION PHASE'!C98=\"No\",0,3)","v":0}]
[{"$f":"SUM(A42:A44)","v":0},"TOTAL"]

{"sheet":"PLACED IN SERVICE PHASE","index":3,"n_rows":136,"n_cols":7,"rows_kept":136,"cut":false,"hidden":false,"merged":[[8,1,8,6],[9,1,9,6],[13,1,13,6],[14,1,14,6],[33,1,33,6],[79,2,80,4],[112,1,112,6],[113,1,113,6],[72,1,72,6],[71,1,71,6],[135,2,135,3],[135,5,135,6],[134,2,134,3],[90,1,90,6],[91,1,91,6],[92,1,92,6],[93,1,93,6],[111,1,111,6],[100,2,101,4],[132,1,132,6],[114,5,115,5],[134,5,134,6],[34,1,34,6],[35,1,35,6],[70,1,70,6],[21,2,22,4],[58,2,59,4],[40,1,40,6],[53,1,53,6],[5,5,5,6],[6,4,6,6],[1,1,1,5],[4,2,4,3],[2,2,2,3],[2,5,2,6],[3,2,3,3],[3,5,3,6],[4,4,4,6],[5,2,5,3],[6,2,6,3]]}
[]
[null,"TCAC Sustainable Building Methods Worksheet - PLACED-IN-SERVICE PHASE",null,null,null,null,{"$f":"Instructions!G2","v":"v 1.04"}]
[null,"Building Name:",{"$f":"'APPLICATION PHASE'!C3:D3","v":0},null,"Building Address:",{"$f":"'APPLICATION PHASE'!F3:G3","v":0}]
[null,"Modeler Name:",{"$f":"'APPLICATION PHASE'!C4:D4","v":0},null,"Modeler Company:",{"$f":"'APPLICATION PHASE'!F4:G4","v":0}]
[null,"Modeler CEPE ID #:",{"$f":"'APPLICATION PHASE'!C5:D5","v":0},null,"Required for all rehab projects:"]
[null,"Modeler Phone # and E-mail:",{"$f":"'APPLICATION PHASE'!C6:D6","v":0},null,"Modeler HERS Whole House Rater ID #:",{"$f":"'APPLICATION PHASE'!F6:G6","v":0}]
[null,"Application Date:",{"$f":"TODAY()","v":"2014-09-05"}]
[]
[null,"Worksheet instructions: Please ensure that excel macros are enabled.  Fill the worksheet out from top to bottom, indicating any changes in the energy model for the Placed in Service Phase."]
[null,"Please fill out all fields, marking fields that do not apply to your specific project with an \"N/A.\""]
[]
[null,null,null,"Select Project Type:","Please Select"]
[]
[null," New Construction Low-Rise:"]
[null,"For new construction low-rise projects, the energy modeler will reference the \"Percent Better than Standard\" shown on the CF-1R generated in EnergyPro (Res T-24) or MicroPas."]
[]
[null,null,"Insert \"Percent Better than Standard\" from CF-1R:"]
[null,null,"Green Building Rating Program associated with project:",null,"None"]
[null,null,{"$f":"IF(E17<>'APPLICATION PHASE'!E17,\"WARNING: CALCULATED IMPROVEMENT DOES NOT MATCH APPLICATION PHASE.  PLEASE EXPLAIN BELOW!\",\"\")","v":""}]
[]
[null,null,"Please explain any changes to the energy model since the application phase:"]
[]
[]
[]
[null,null,"For New Construction Low-Rise Projects, the following documentation will be submitted with this application: "]
[null,null,"CF1-R"]
[null,null,".Bld or .mp8 file"]
[null,null,"Summary of Installed Measures & Statement of Completion (below)"]
[null,null,"CALGreen Mandatory Measures Checklist (See CALGreen Checklist Tab)"]
[null,null,"Project Plans"]
[null,null,"Equipment Specifications"]
[null,null,"Bills of Lading for Appliances"]
[null,null,{"$f":"IF(E18=\"None\",\" \",IF(E18=\"GreenPoint Rating (less than 100 Points)\",\"Green Point Rating label\",IF(E18=\"GreenPoint Rating (100-124 Points)\",\"Green Point Rating Label\",IF(E18=\"GreenPoint Rating (125+ Points)\",\"Green Point Rating Label\",IF(E18=\"Enterprise Green Communities\",\"Green Communities Label\",\"LEED Label\")))))","v":" "}]
[]
[null,"New Construction High-Rise:"]
[null,"For new construction high-rise projects, the energy modeler will reference thefollowing values shown on the PERF-1C generated in EnergyPro (Non-Res T-24) or MicoPas.  Note that the"]
[null,"improvement percentage shown in the modeling software will be adjusted, as described in the Instructions tab."]
[null,null,"Insert  \"Standard Design\" Annual TDV Energy Use (TOTALS) from PERF-1C:"]
[null,null,"Insert  \"Proposed Design\" Annual TDV Energy Use (TOTALS) from PERF-1C:"]
[]
[null,"The following four end uses will be subtracted from the total as you enter them:"]
[null,null,"Insert  \"Standard Design\" Lighting TDV Energy Use from PERF-1C:"]
[null,null,"Insert  \"Proposed Design\" Lighting TDV Energy Use from PERF-1C:"]
[]
[null,null,"Insert  \"Standard Design\" Receptacle TDV Energy Use from PERF-1C:"]
[null,null,"Insert  \"Proposed Design\" Receptable TDV Energy Use from PERF-1C:"]
[]
[null,null,"Insert  \"Standard Design\" Process TDV Energy Use from PERF-1C:"]
[null,null,"Insert  \"Proposed Design\" Process TDV Energy Use from PERF-1C:"]
[]
[null,null,"Insert  \"Standard Design\" Process Lighting TDV Energy Use from PERF-1C:",null,null,{"$f":"CALCS2!C16","v":0}]
[null,null,"Insert  \"Proposed Design\" Process Ligthing TDV Energy Use from PERF-1C:"]
[]
[null,"Green Building Program:"]
[null,null,"Green Building Rating Program associated with project:",null,"None"]
[null,null,{"$f":"IF(CALCS!C16<>CALCS2!C16,\"WARNING: CALCULATED IMPROVEMENT DOES NOT MATCH APPLICATION PHASE.  PLEASE EXPLAIN BELOW!\",\"\")","v":""}]
[]
[null,null,"Please explain any changes to the energy model since the application phase:"]
[]
[]
[]
[null,null,"For New Construction High-Rise Projects, the following documentation will be submitted with this application: "]
[null,null,"PERF-1C"]
[null,null,".Bld or .mp8 file"]
[null,null,"Summary of Installed Measures & Statement of Completion (below)"]
[null,null,"CALGreen Mandatory Measures Checklist (See CALGreen Checklist Tab)"]
[null,null,"Project Plans"]
[null,null,"Equipment Specifications"]
[null,null,"Bills of Lading for Appliances"]
[null,null,{"$f":"IF(E55=\"None\",\" \",IF(E55=\"GreenPoint Rating (less than 100 Points)\",\"Green Point Rating label\",IF(E55=\"GreenPoint Rating (100-124 Points)\",\"Green Point Rating Label\",IF(E55=\"GreenPoint Rating (125+ Points)\",\"Green Point Rating Label\",IF(E55=\"Enterprise Green Communities\",\"Green Communities Label\",\"LEED Label\")))))","v":" "}]
[]
[null,"Rehab Low-Rise:"]
[null,"For low-rise rehab construction projects, the energy modeler will reference the \"TDV Energy\" values shown on the ECON-2 generated in EnergyPro (Res Performance)."]
[]
[null,null,"Insert existing building \"TDV Energy (kBtu/ft2-yr)\" from ECON-2:",null,null,{"$f":"CALCS2!A33","v":0}]
[null,null,"Insert improved building \"TDV Energy (kBtu/ft2-yr)\" from ECON-2:"]
[null,null,{"$f":"IF(CALCS!A32<>CALCS2!A32,\"WARNING: CALCULATED IMPROVEMENT DOES NOT MATCH APPLICATION PHASE.  PLEASE EXPLAIN BELOW!\",\"\")","v":""}]
[]
[null,null,"Please explain any changes to the energy model since the application phase:"]
[]
[]
[]
[null,null,"For Rehab Low-Rise Projects, the following documentation will be submitted with this application: "]
[null,null,"ECON-2 (2 are needed if using 2 models)"]
[null,null,".Bld file (2 are needed if using 2 models)"]
[null,null,"Summary of Installed Measures & Statement of Completion (below)"]
[null,null,"CALGreen Mandatory Measures Checklist (See CALGreen Checklist Tab)"]
[null,null,"Project Plans"]
[null,null,"Equipment Specifications"]
[null,null,"Bills of Lading for Appliances"]
[]
[null,"Rehab High-Rise:"]
[null,"For high-rise rehab construction projects, the energy modeler will reference the \"Total Electricity (kWh) and Fossil Fuel (therms)\" "]
[null,"values shown on the ECON-2 generated in EnergyPro (Non-Res Performance)."]
[]
[null,null,"Insert existing building \"TDV Energy (kBtu/ft2-yr)\" from ECON-2:",null,null,{"$f":"CALCS2!G33","v":0}]
[null,null,"Insert improved building \"TDV Energy (kBtu/ft2-yr)\" from ECON-2:"]
[null,null,{"$f":"IF(CALCS!G32<>CALCS2!G32,\"WARNING: CALCULATED IMPROVEMENT DOES NOT MATCH APPLICATION PHASE.  PLEASE EXPLAIN BELOW!\",\"\")","v":""}]
[]
[null,null,"Please explain any changes to the energy model since the application phase:"]
[]
[]
[]
[null,null,"For Rehab High-Rise Projects, the following documentation will be submitted with this application: "]
[null,null,"ECON-2 (2 are needed if using 2 models)"]
[null,null,".Bld file (2 are needed if using 2 models)"]
[null,null,"Summary of Installed Measures & Statement of Completion (below)"]
[null,null,"CALGreen Mandatory Measures Checklist (See CALGreen Checklist Tab)"]
[null,null,"Project Plans"]
[null,null,"Equipment Specifications"]
[null,null,"Bills of Lading for Appliances"]
[]
[null,"Summary of Installed Measures & Statement of Completion"]
[null,"The third party verifier will indicate below the measures verified.  This section shall be completed for ALL projects."]
[null,null,null,null,null,"Was Measure Installed as Intended?"]
[null,null,"Proposed Energy Savings Measure:","Means of Verification:","Verifier Comments:",null,"Initials of Verifier:"]
[null,"Measure #1",{"$f":"'APPLICATION PHASE'!C110","v":0},{"$f":"'APPLICATION PHASE'!D110:E110","v":0}]
[null,"Measure #2",{"$f":"'APPLICATION PHASE'!C111","v":0},{"$f":"'APPLICATION PHASE'!D111:E111","v":0}]
[null,"Measure #3",{"$f":"'APPLICATION PHASE'!C112","v":0},{"$f":"'APPLICATION PHASE'!D112:E112","v":0}]
[null,"Measure #4",{"$f":"'APPLICATION PHASE'!C113","v":0},{"$f":"'APPLICATION PHASE'!D113:E113","v":0}]
[null,"Measure #5",{"$f":"'APPLICATION PHASE'!C114","v":0},{"$f":"'APPLICATION PHASE'!D114:E114","v":0}]
[null,"Measure #6",{"$f":"'APPLICATION PHASE'!C115","v":0},{"$f":"'APPLICATION PHASE'!D115:E115","v":0}]
[null,"Measure #7",{"$f":"'APPLICATION PHASE'!C116","v":0},{"$f":"'APPLICATION PHASE'!D116:E116","v":0}]
[null,"Measure #8",{"$f":"'APPLICATION PHASE'!C117","v":0},{"$f":"'APPLICATION PHASE'!D117:E117","v":0}]
[null,"Measure #9",{"$f":"'APPLICATION PHASE'!C118","v":0},{"$f":"'APPLICATION PHASE'!D118:E118","v":0}]
[null,"Measure #10",{"$f":"'APPLICATION PHASE'!C119","v":0},{"$f":"'APPLICATION PHASE'!D119:E119","v":0}]
[null,"Measure #11",{"$f":"'APPLICATION PHASE'!C120","v":0},{"$f":"'APPLICATION PHASE'!D120:E120","v":0}]
[null,"Measure #12",{"$f":"'APPLICATION PHASE'!C121","v":0},{"$f":"'APPLICATION PHASE'!D121:E121","v":0}]
[null,"Measure #13",{"$f":"'APPLICATION PHASE'!C122","v":0},{"$f":"'APPLICATION PHASE'!D122:E122","v":0}]
[null,"Measure #14",{"$f":"'APPLICATION PHASE'!C123","v":0},{"$f":"'APPLICATION PHASE'!D123:E123","v":0}]
[null,"Measure #15",{"$f":"'APPLICATION PHASE'!C124","v":0},{"$f":"'APPLICATION PHASE'!D124:E124","v":0}]
[]
[null,"As the verifier for this project, I confirm that the following energy savings measures have been installed and meet the intent of the energy model."]
[]
[null,"Verifier Name:",{"$f":"'APPLICATION PHASE'!C128:D128","v":0},null,"Verifier Company:",{"$f":"'APPLICATION PHASE'!F128:G128","v":0}]
[null,"Verifier Phone #:",{"$f":"'APPLICATION PHASE'!C129:D129","v":0},null,"Verifier HERS Whole House Rater ID #:",{"$f":"'APPLICATION PHASE'!F129:G129","v":0}]

{"sheet":"CALCS2","index":4,"n_rows":45,"n_cols":8,"rows_kept":45,"cut":false,"hidden":true,"merged":[]}
["NEW CONSTRUCTION"]
[]
["Low Rise"]
[0,0]
[0.17499999999999999,2]
[0.2,3]
[0.25,5]
["POINTS IF LOW RISE:",{"$f":"INDEX(B4:B7,MATCH('PLACED IN SERVICE PHASE'!E17,A4:A7,1))","v":0}]
[]
["High Rise"]
[0,0]
[0.17499999999999999,3]
[0.2,5]
["POINTS IF HIGH RISE:",{"$f":"INDEX(B11:B13,MATCH(C16,A11:A13,1))","v":0},{"$f":"'PLACED IN SERVICE PHASE'!E38-'PLACED IN SERVICE PHASE'!E42-'PLACED IN SERVICE PHASE'!E45-'PLACED IN SERVICE PHASE'!E48-'PLACED IN SERVICE PHASE'!E51","v":0},"adjusted TDV"]
[null,null,{"$f":"'PLACED IN SERVICE PHASE'!E39-'PLACED IN SERVICE PHASE'!E43-'PLACED IN SERVICE PHASE'!E46-'PLACED IN SERVICE PHASE'!E49-'PLACED IN SERVICE PHASE'!E52","v":0},"adjusted TDV"]
["TOTAL POINTS:",{"$f":"IF('PLACED IN SERVICE PHASE'!E12=\"New Construction Low-Rise\",CALCS2!B8,IF('PLACED IN SERVICE PHASE'!E12=\"New Construction High-Rise\",CALCS2!B14,\"0\"))","v":"0"},{"$f":"IF(C14=0,0,(C14-C15)/C14)","v":0},"adjusted improvement"]
[]
[]
["None",0]
["GreenPoint Rating (Less than 100 Points)",5]
["GreenPoint Rating (100-124 Points)",8]
["GreenPoint Rating (125+ Points)",10]
["LEED (less than Silver)",5]
["LEED (Silver)",8]
["LEED (Gold+)",10]
["Enterprise Green Communities",5]
[]
["POINTS:",{"$f":"IF('PLACED IN SERVICE PHASE'!E12=\"New Construction Low-Rise\",VLOOKUP('PLACED IN SERVICE PHASE'!E18,CALCS2!A19:B26,2,FALSE),IF('PLACED IN SERVICE PHASE'!E12=\"New Construction High-Rise\",VLOOKUP('PLACED IN SERVICE PHASE'!E55,CALCS2!A19:B26,2,FALSE),0))","v":0}]
[]
["REHAB CALC"]
[]
[{"$f":"IF('PLACED IN SERVICE PHASE'!E76=0,0,('PLACED IN SERVICE PHASE'!E75-'PLACED IN SERVICE PHASE'!E76)/'PLACED IN SERVICE PHASE'!E75)","v":0},"Percent improvement (low-rise)",null,null,null,null,{"$f":"IF('PLACED IN SERVICE PHASE'!E97=0,0,('PLACED IN SERVICE PHASE'!E96-'PLACED IN SERVICE PHASE'!E97)/'PLACED IN SERVICE PHASE'!E96)","v":0},"Percent improvement (high-rise)"]
[{"$f":"A32","v":0},null,null,null,null,null,{"$f":"G32","v":0}]
[0,0]
[0.15,3]
[0.2,5]
[0.25,7]
[0.3,10]
[]
["POINTS:",{"$f":"IF('PLACED IN SERVICE PHASE'!E12=\"Rehab Low-Rise\",INDEX(B34:B38,MATCH(A32,A34:A38,1)),IF('PLACED IN SERVICE PHASE'!E12=\"Rehab High-Rise\",INDEX(B34:B38,MATCH(G32,A34:A38,1))))","v":false}]
["REHAB EXTRA POINTS:"]
[{"$f":"IF('PLACED IN SERVICE PHASE'!C101=\"None of the above\",0,3)","v":3}]
[{"$f":"IF('PLACED IN SERVICE PHASE'!C104=\"No\",0,3)","v":3}]
[{"$f":"IF('PLACED IN SERVICE PHASE'!C110=\"No\",0,3)","v":3}]
[{"$f":"SUM(A42:A44)","v":9},"TOTAL"]

{"sheet":"CALGreen Checklist","index":5,"n_rows":77,"n_cols":7,"rows_kept":77,"cut":false,"hidden":false,"merged":[[1,1,1,5],[10,1,10,6],[2,2,2,3],[2,5,2,6],[3,2,3,3],[3,5,3,6],[4,2,4,3],[4,5,4,6],[5,2,5,3],[5,5,5,6],[7,1,7,6],[8,1,8,6],[9,1,9,6],[49,1,49,4],[11,1,11,6],[13,1,13,4],[18,1,18,4],[21,1,23,1],[21,2,23,2],[21,3,21,6],[26,1,26,4],[30,1,30,4],[34,1,34,4],[41,1,41,4],[45,1,45,4],[60,1,60,4],[65,1,65,4],[69,1,69,4],[74,1,74,6],[76,1,76,2],[76,3,76,6]]}
[]
[null,"TCAC Sustainable Building Methods Worksheet - CALGreen Checklist",null,null,null,null,{"$f":"Instructions!G2","v":"v 1.04"}]
[null,"Building Name:",{"$f":"'APPLICATION PHASE'!C3:D3","v":0},null,"Building Address:",{"$f":"'APPLICATION PHASE'!F3:G3","v":0}]
[null,"Verifier Name and Company:",null,null,"Verifier Company:"]
[null,"Verifier GreenPoint Rater ID #:",null,null,"Verifier HERS Whole House Rater ID #:"]
[null,"Verifier Phone # and E-mail:",null,null,"Application Date:",{"$f":"TODAY()","v":"2014-09-05"}]
[]
[null,"Worksheet instructions: Please ensure that excel macros are enabled.  Complete CALGreen Compliance is required for all New Construction projects, and on a measure-by-measure basis for all Rehabilitation projects.  The CALGreen verifier "]
[null,"(a HERS II Rater or Multifamily GreenPoint Rater) will indicate whether each specific CALGreen requirement is met, unmet, or not applicable, and provide notes on how the building has met each requirement.  The verifier should keep "]
[null,"all verification documentation in the case that it is requested by TCAC.  Note that while this worksheet provides a summary of all manditory measures required by TCAC, the verifier should always refer to the complete CALGreen code"]
[null,"doumentation for complete descriptions of all measures.  Please fill out all fields, marking fields that do not apply to your specific project with an \"N/A.\""]
[null,"Documentation of compliance shall include, but is not limited to, construction documents,  plans, specifications,  builder or installer certification, inspection reports, or other methods acceptable to the local enforcing agency.  Other specific documentation  or special inspections  necessary to verify compliance are specified in appropriate sections of CALGreen. Referenced worksheets and full CALGreen text can be found at:"]
[null,"http://www.hcd.ca.gov/CALGreen.html"]
[null,"Division 4.1 - PLANNING AND DESIGN (SITE DEVELOPMENT)"]
[null,"SECTION","MEASURE NAME","REQUIREMENTS","VERIFICATION METHOD","RESULTS OF VERIFICATION","VERIFIER NOTES"]
[]
[null,"4.106.2","Storm Water Drainage and Retention During Construction","Projects which disturb less than one acre of soil and are not part of a larger common plan of development  shall manage storm water drainage during construction to prevent flooding of adjacent property, prevent erosion and retain soil runoff on site.  One or more of the following measures shall be implemented:\n\n1. Retention basin sized to retain storm water on site\n2. Installation of barrier system, wattle or other method to filter water prior to entry into public drainage system or other collection point\n3. Compliance with local storm water management ordinance","Field verification of installed method to comply with measure. ","Please Select"]
[null,"4.106.3","Grading and Paving","Construction plans shall indicate how the site grading or drainage system will manage all surface water flows to keep water from entering buildings.\n\nExamples of acceptable methods include but are not limited to: Sloped ground; Roof overhangs; Swales; Berms; Water collection and disposal systems; French drains; Water retention gardens; Pervious paving systems with subsurface detention, drainage, and infiltration capacities; and Other measures which keep surface water away from buildings and aid in groundwater recharge.","Review of plans for elements to comply with measure and complete field verification for installed measures. ","Please Select"]
[null,"Division 4.3 - WATER EFFICIENCY AND CONSERVATION (INDOOR WATER USE)"]
[null,"SECTION","MEASURE NAME","REQUIREMENTS","VERIFICATION METHOD","RESULTS OF VERIFICATION","VERIFIER NOTES"]
[]
[null,"4.303.1","Twenty Percent Savings","Fixtures and fixture fittings reducing the overall use of potable water within the building by at least 20% shall be provided.  The 20% reduction shall be demonstrated  by one of the following two methods:"]
[null,null,null,"1. Prescriptive Method: Toilets (≤ 1.28 gal/flush); Showerheads  (≤ 2.0 gpm @ 80psi); Kitchen Faucets (≤ 1.8 gpm @ 60psi); Lavatory Faucets (≤ 1.5 gpm @ 60psi), Urinals (≤0.5 gal/flush).  See full CALGreen code for notes and exceptions related to this method.","Field verification of flow rates. Cut sheets of fixtures and verification of installed fixtures.","Please Select"]
[null,null,null,"2.  Performance  Method: Provide a calculation demonstrating  a 20% reduction of building \"water use\" baseline as established using the baseline values established in form WS 1 - Baseline Water Use.","The verifier will fill out CALGreen calculation forms WS 1 - Baseline Water Use and WS 2 - 20 Percent Reduction Water Use Calculation Table available here.  Field verification of flow rates.  Cut sheets of flow rates.  Cut sheets of fixtures and verification of installed fixtures.","Please Select"]
[null,"4.303.2","Multiple Showerheads Serving One Shower","When single shower fixtures are served by more than one showerhead,  the combined flow rate of all the showerheads  controlled by a single valve shall not exceed 2.0 gpm at 80 psi or the shower shall be designed to only allow one showerhead  to be in operation at a time.\n\nException: The maximum flow rate for showerheads when using the performance method specified in Section 4.303.1, Item 2, is 2.5 gpm @ 80 psi.","Field verification of installed showerheads. ","Please Select"]
[null,"4.303.3","Plumbing Fixtures and Fittings","Plumbing fixtures and fittings shall meet the following standards: Toilets flushometer-valve single flush (ASME A112.19.2/CSA B45.1 – 1.28 gal (4.8 L)); Toilets flushometer-valve dual flush (ASME A112.19.14 and U.S. EPA WaterSense Tank-Type High-Efficiency\nToilet Specification – 1.28 gal (4.8 L)); Tank-type toilets (U.S. EPA WaterSense Tank-Type High-Efficiency Toilet Specification); Urinals (ASME A112.19.2/CSA B45.1 – 0.5 gal (1.9 L)); Non-water urinals (ASME A112.19.19 (vitreous china) and ANSI Z124.9-2004 or IAPMO Z124.9 (plastic)); Faucets and showerheads (ASME A112.18.1/CSA B125.1)","Cut sheets of fixtures and verification of installed fixtures.","Please Select"]
[null,"Division 4.3 - WATER EFFICIENCY AND CONSERVATION (OUTDOOR  WATER USE)"]
[null,"SECTION","MEASURE NAME","REQUIREMENTS","VERIFICATION METHOD","RESULTS OF VERIFICATION","VERIFIER NOTES"]
[]
[null,"4.304.1","Irrigation Controllers","Automatic irrigation system controllers for landscaping  provided by the builder and installed at the time of final inspection shall comply with the following: \n\n1. Controllers shall be weather- or soil moisture-based controllers that automatically  adjust irrigation in response to changes in plants' watering needs as weather or soil conditions change.\n\n2. Weather-based controllers without integral rain sensors or communication systems that account for rainfall shall have a separate wired or wireless rain sensor which connects or communicates  with the controller(s).","Documentation that irrigation controller meets requirements.  Field verification of installed controllers should be completed. ","Please Select"]
[null,"Division 4.4 - MATERIAL CONSERVATION & RESOURCE EFFICIENCY (ENHANCED  DURABILITY  & REDUCED MAINTENANCE)"]
[null,"SECTION","MEASURE NAME","REQUIREMENTS","VERIFICATION METHOD","RESULTS OF VERIFICATION","VERIFIER NOTES"]
[]
[null,"4.406.1","Rodent Proofing","Annular spaces around pipes, electric cables, conduits, or other openings in plates at exterior walls shall be closed with cement mortar, concrete masonry or a similar method acceptable to the enforcing agency to prevent passage of rodents.  Openings in the building envelope separating conditioned space from unconditioned  space needed to accommodate  gas, plumbing, electrical lines and other necessary penetrations  must be sealed as required by the California Energy Code.","Field verification of sealed penetrations.","Please Select"]
[null,"Division 4.4 - MATERIAL CONSERVATION & RESOURCE EFFICIENCY (CONSTRUCTION WASTE REDUCTION, DISPOSAL & RECYCLING)"]
[null,"SECTION","MEASURE NAME","REQUIREMENTS","VERIFICATION METHOD","RESULTS OF VERIFICATION","VERIFIER NOTES"]
[]
[null,"4.408.1","Construction  Waste Reduction of at least 50%","Recycle and/or salvage for reuse a minimum of 50% of the nonhazardous  construction and demolition debris in accordance with 4.408.2, 4.408.3, or 4.408.4, or meet a more stringent local construction and demolition waste management  ordinance. \n\nExceptions:\n1.  Excavated soil and land-clearing  debris.\n2. Alternate waste reduction methods developed by working with local enforcing agencies if diversion or recycle facilities capable of compliance with this item do not exist or are not located reasonably close to jobsite. ","Waste Management form indicating waste generated and diverted.  Demonstrated diversion rate must be 50% or greater.  Sample forms provided by HCD can be found here.\n","Please Select"]
[null,"4.408.2","Construction  Waste Management  Plan","Submit a construction waste management plan that complies ALL of the following items.  The plan shall be updated as necessary and shall be available during construction for examination.\n\n1. Identify the materials to be diverted from disposal by recycling, reuse on the project or salvage for future use or sale.\n2. Specify if materials will be sorted on-site or mixed for transportation to a diversion facility.\n3. Identify the diversion facility where the material collected will be taken.\n4. Identify construction methods employed to reduce the amount of waste generated.\n5. Specify that the amount of materials diverted shall be calculated by weight or volume, but not by both.  ","Waste management plan or construction and demolition form documenting anticipated waste generation and diversion.  Sample forms provided by HCD can be found here.","Please Select"]
[null,"4.408.3","Waste Management Company","Use a  waste management company approved by the enforcing agency which can provide verifiable documentation that the percentage of construction and demolition waste material diverted  from the landfill complies with Section 4.408.1.","Waste management plan or construction and demolition form documenting anticipated waste generation and diversion.  Sample forms provided by HCD can be found here.","Please Select"]
[null,"4.408.4","Waste Stream Reduction Alternative","Projects that generate a total combined weight of construction and demolition debris disposed of in landfills of below 4 pounds per square-foot of building area shall meet the minimum requirement of Section 4.408.1.","Waste management plan or construction and demolition form documenting anticipated waste generation and diversion.  Sample forms provided by HCD can be found here.","Please Select"]
[null,"Division 4.4 - MATERIAL CONSERVATION & RESOURCE EFFICIENCY (BUILDING MAINTENANCE & OPERATION)"]
[null,"SECTION","MEASURE NAME","REQUIREMENTS","VERIFICATION METHOD","RESULTS OF VERIFICATION","VERIFIER NOTES"]
[]
[null,"4.410.1","Operation and Maintenance  Manual","At the time of final inspection, a manual, compact disc, web-based reference or other media acceptable to the enforcing agency which covers 10 specific subject areas shall be placed in the building.\n1. Directions to homeowner or occupant that the manual shall remain with the building throughout the lifecycle of the structure. \n2. Operation and maintenances instructions for: \n       a. Equipment and appliances, including energy and water-saving devices and systems, HVAC         systems, water-heating systems, lighting and other major appliances and electronic equipment.\n       b. Roof and yard drainage, including gutters and downspouts.\n       c. Space conditioning systems, including condensers, condensate drains and air filters\n       d. Landscape irrigation systems\n       e. Water reuse systems\n3. Information on ways to optimize water and energy use including household recycling opportunities and water/ energy reduction opportunities through utilities or recycling programs\n4. Information on routine maintenance to maintain integrity of building interior and exterior including painting and caulking, grading  etc. \n5. Instructions for keeping gutters clean and directing downspouts to divert water away (at least 5 feet) from the home and importance of roof and yard drainage\n6. Instructions on the positive impacts of an interior relative humidity between 30–60 percent and what methods an occupant may use to maintain the relative humidity level in that range.\n7. Information on public transportation/ carpooling in the area\n8. Information on statewide solar incentive programs available\n9. Instructions on water-conserving landscape and irrigation design and controllers for conserving water. \n10. Copy of all special inspection verifications required by the Authority Having Jurisdiction. \n","Homeowner Manual shall be reviewed and compared to list of required components for compliance with this measure.","Please Select"]
[null,"Division 4.5 - ENVIRONMENTAL QUALITY (FIREPLACES)"]
[null,"SECTION","MEASURE NAME","REQUIREMENTS","VERIFICATION METHOD","RESULTS OF VERIFICATION","VERIFIER NOTES"]
[]
[null,"4.503.1","General","Any installed gas fireplace shall be a direct-vent sealed-combustion type.  Any installed woodstove or pellet stove shall comply with U.S. EPA Phase II emission limits where applicable.   Woodstoves,  pellet stoves and fireplaces shall also comply with all applicable local ordinances.\nThe fireplace must be consistent with California Energy Code, Part6. Examples include having a closeable metal or glass doors covering the entire opening of the firebox, a 6 sq. in. combustion air duct from the outside, and equipped with a readily accessible, operable, and tight-fitting damper or combustion-air control device.","Field verification of installed fireplace and documentation of compliance with US EPA Phase II emissions if appropriate. ","Please Select"]
[null,"Division 4.5 - ENVIRONMENTAL QUALITY (POLLUTANT  CONTROL)"]
[null,"SECTION","MEASURE NAME","REQUIREMENTS","VERIFICATION METHOD","RESULTS OF VERIFICATION","VERIFIER NOTES"]
[]
[null,"4.504.1","Covering of Duct Openings and Protection of Mechanical  Equipment During Construction","At the time of rough installation, during storage on the construction site and until final startup of the heating and cooling equipment, all duct and other related air distribution component openings shall be covered.  Tape, plastic, sheetmetal or other methods acceptable to the enforcing agency to reduce the amount of water, dust or debris entering the system may be used.","Field verification of protected ducts throughout construction process. ","Please Select"]
[null,"4.504.2.1","Adhesives,  Sealants and Caulks","Adhesives, sealants and caulks used on the project shall meet the requirements  of the following standards unless more stringent local or regional air pollution or air quality management  district rules apply:\n\n1. Adhesives, adhesive bonding primers, adhesive primers, sealants, sealant primers, and caulks shall comply with local or regional air pollution control or air quality management  district rules where applicable, or SCAQMD Rule 1168 (www.aqmd.gov/rules/reg/reg11/r1168.pdf).  VOC limits, as shown in Tables 4.504.1 or 4.504.2 (see right) as applicable.    Such products shall also comply with Rule 1168 prohibition on the use of certain toxic compounds  (chloroform,  ethylene dichloride, methylene chloride, perchloroethylene and trichloroethylene), except for aerosol products as specified in Subsection 2 below. \n\n2. Aerosol adhesives, and smaller unit sizes of adhesives, and sealant or caulking compounds  (in units of product, less packaging, which do not weigh more than 1 pound and do not consist of more than 16 fluid ounces) shall comply with statewide VOC standards and other requirements, including prohibitions  on use of certain toxic compounds,  of California Code of Regulations,  Title 17, commencing  with Section 94507.","Documentation of VOC levels of product and invoice or equivalent to verify installed product. Sample documentation (PC 1 - PC 3) is available here.","Please Select"]
[null,"4.504.2.2","Paints and Coatings","Architectural  paints and coatings shall comply with VOC limits in Table 1 of the Air Resources Board Architectural  Suggested Control Measure, as shown in Table 4.504.3 (see right) unless more stringent local limits apply.  The VOC content limit  for coatings that do not meet the definitions for the specialty coatings categories listed in Table 4.504.3, shall be determined by classifying the coating as Flat, Nonflat, or Nonflat-High Gloss coating, based on its gloss, as defined in subsections  4.21, 4.36, and 4.37, of the 2007 California Air Resources Board, Suggested Control Measure, and the corresponding  Flat, Nonflat, or Nonflat-High Gloss VOC limit in Table 4.504.3 shall apply. As a reference the threshold for Flat is 50 g/l and  the threshold for Nonflat is 110 g/l.","Documentation of VOC levels of product and invoice. Sample documentation (PC 5 - PC 7) is available here.","Please Select"]
[null,"4.504.3","Carpet Systems","All carpet installed in the building interior shall meet the testing and product requirements  of one of the following:\n\n1. Carpet and Rug Institute's Green Label Plus Program\n2. California Department  of Public Health Standard Method for the Testing and Evaluation of Volatile Organic Chemical Emissions from Indoor Sources Using Environmental  Chambers, Version 1.1, February 2010 (also known as Specification 01350.)\n3. NSF/ANSI 140 at the Gold level\n4. Scientific Certifications  Systems Indoor Advantage™  Gold","Documentation of certification of product and invoice or equivalent to verify installed product.  Sample documentation (PC 9 - PC 11) is available here.","Please Select"]
[null,"4.504.3.1","Carpet Cushion","All carpet cushion installed in the building interior shall meet the requirements  of the Carpet and Rug Institute Green Label Program.","Documentation of certification of product and invoice or equivalent to verify installed product.  Sample documentation (PC 9 - PC 11) is available here.","Please Select"]
[null,"4.504.3.2","Carpet Adhesive","All carpet adhesives shall meet the requirements  of Table 4.504.1 (see right).","Documentation of VOC levels of product and invoice or equivalent to verify installed product. Sample documentation (PC 1 - PC 3) is available here.","Please Select"]
[null,"4.504.4","Resilient Flooring Systems","Where resilient flooring is installed, at least 50% of floor area receiving resilient flooring shall comply with one or more of the following:\n\n1. VOC emission limits defined in the Collaborative  for High Performance  Schools (CHPS) High Performance  Products Database.\n2. Products compliant with CHPS criteria certified under the Greenguard  Children & Schools program.\n3. Certification under the Resilient Floor Covering Institute (RFCI) FloorScore program.\n4. Meet the California Department  of Public Health, “Standard Method for the Testing and Evaluation of Volatile Organic Chemical Emissions from Indoor Sources Using Environmental  Chambers”,  Version 1.1, February 2010 (also known as Specification 01350.)","Documentation of certification of product and invoice or equivalent to verify installed product.  Sample documentation (PC 9 - PC 11) is available here.","Please Select"]
[null,"4.504.5","Composite Wood Products","Hardwood plywood, particleboard  and medium density fiberboard composite wood products used on the interior or exterior of the building shall meet the requirements  for formaldehyde  as specified in Air Resources Board's Air Toxics Control Measure for Composite Wood (17 CCR 93120 et. seq.), by or before the dates specified in those sections shown in Table 4.504.5 (see right).\n\nDefinition of Composite Wood Products: Composite wood products include hardwood plywood, particleboard,  and medium density fiberboard. \"Composite wood products\" do not include hardboard, structural plywood, structural panels, structural composite lumber, oriented strand board, glued laminated timber, prefabricated  wood I-joists, or finger-jointed  lumber, all as specified in CCR, Title 17, Section 93120.1(a).","Documentation of certification of product and invoice or equivalent to verify installed product.  Sample documentation (PC 13 - PC 15) is available here.","Please Select"]
[null,"Division 4.5 - ENVIRONMENTAL QUALITY (INTERIOR MOISTURE  CONTROL)"]
[null,"SECTION","MEASURE NAME","REQUIREMENTS","VERIFICATION METHOD","RESULTS OF VERIFICATION","VERIFIER NOTES"]
[]
[null,"4.505.2.1","Capillary Break","A capillary break shall be installed in compliance with at least one of the following:\n\n1. Install a vapor retarder in contact with concrete and in contact with a 4-inch thick base of ½ inch or larger aggregate. The concrete mix design shall be designed to address bleeding, shrinkage, and curing. The vapor barrier must overlap by a recommended 6 inches and taped with water resistant tape. For additional information,  see American Concrete Institute, ACI 302.2R-06.\n2. Other equivalent methods approved by the enforcing agency. \n3. A slab design specified by a licensed design professional.\n\nNote: Section 4.505.2 states Concrete slab foundations  required to have a vapor retarder by the California Building Code, Chapter 19; or the California Residential Code, Chapter 5, shall also comply with this section.","Plan review of plans demonstrating vapor retarder to be installed and field verification of installed vapor barrier.   Example of documentation can be found here.","Please Select"]
[null,"4.505.3","Moisture Content of Building Materials","Building materials with visible signs of water damage shall not be installed.  Wall and floor framing shall not be enclosed when the framing members exceed 19% moisture content.  Moisture content shall be verified in compliance with the following:\n1. Moisture content shall be determined with either a probe-type or a contact-type  moisture meter or other equivalent method approved by enforcing agency. \n2. Moisture readings shall be taken at a point 2 feet (610 mm) to 4 feet (1219 mm) from the grade-stamped end of each piece to be verified.\n3. At least three random moisture readings shall be performed on wall and floor framing with documentation  acceptable to the enforcing agency provided at the time of approval to enclose the wall and floor framing.","A field verification of compliance.  Builder or other responsible professional will demonstrate compliance.  Example of documentation can be found here.\n","Please Select"]
[null,"Division 4.5 - ENVIRONMENTAL QUALITY (INDOOR AIR QUALITY & EXHAUST)"]
[null,"SECTION","MEASURE NAME","REQUIREMENTS","VERIFICATION METHOD","RESULTS OF VERIFICATION","VERIFIER NOTES"]
[]
[null,"4.506.1","Bathroom Exhaust Fans","Mechanical exhaust fans which exhaust directly from bathrooms shall comply with the following. Note: For the purposes of this section a bathroom is a room which contains a bathtub, shower, or tub/shower combination.   Fans are required in each bathroom.\n\n1. Fans shall be ENERGY STAR compliant and be ducted to terminate outside the building.\n2. Unless functioning as a component of a whole house ventilation system, fans must be controlled by a humidistat or humidity control device. Humidistat or humidity controls shall be capable of adjustment between a relative humidity range of 50% or less to a maximum of 80%. The humidity control does not have to be integral (i.e. built in).","Documentation of  ENERGY STAR rating  and humidistat control may be accomplished through field verification or verification of specification of installed model number. ","Please Select"]
[null,"Division 4.5 - ENVIRONMENTAL QUALITY (ENVIRONMENTAL COMFORT)"]
[null,"SECTION","MEASURE NAME","REQUIREMENTS","VERIFICATION METHOD","RESULTS OF VERIFICATION","VERIFIER NOTES"]
[]
[null,"4.507.1","Openings","Whole house exhaust fans shall have insulated louvers or covers which close when the fan is off.  Covers or louvers shall have a minimum insulation value of R-4.2.","Field verification of installed whole house fan that complies with measure.","Please Select"]
[null,"4.507.2","Heating and Air Conditioning  System Design","Heating and air conditioning  systems shall be sized, designed, and equipment selected using the following methods. Exception:   Use of alternate design temperatures  necessary to ensure the system functions are acceptable. \n1. The heat loss and heat gain is established according to ANSI/ACCA  2 Manual J - 2004 (Residential Load Calculation),  ASHRAE handbooks or other equivalent design software or methods.\n2. Duct systems are sized according to ANSI/ACCA  1 Manual D - 2009 (Residential Duct Systems), ASHRAE handbooks or other equivalent design software or methods.\n3. Select heating and cooling equipment according to ANSI/ACCA  3 Manual S - 2004 (Residential Equipment Selection) or other equivalent design software or methods.","Documentation in the form of building-specific calculations and mechanical plans incorporating requirements of Manuals J, D, and S. Statement from HVAC designer indicating compliance with this measure. ","Please Select"]
[null,"By filling out this document and writing my name below, I verify that the information provided above is accurate, to the best of my knowledge.   I have reviewed the measures listed above in every unit or completed allowable sampling.  The above measures have been implemented to the full extent of CALGreen as outlined in the California Green Building Code. If necessary during any audit process, I can provide backup documentation for the measure(s) claimed above. "]
[]
[null,"Verifier Name:"]

{"sheet":"Doc & Ver for Scoring","index":6,"n_rows":73,"n_cols":7,"rows_kept":73,"cut":false,"hidden":false,"merged":[[66,4,66,5],[55,6,64,6],[59,4,60,4],[59,5,60,5],[63,4,64,4],[63,5,64,5],[65,1,65,3],[53,5,54,5],[55,1,64,1],[55,2,64,2],[55,3,64,3],[55,4,58,4],[55,5,58,5],[37,6,43,6],[42,4,43,4],[42,5,43,5],[45,1,54,1],[45,2,54,2],[45,3,54,3],[45,4,49,4],[45,5,49,5],[45,6,54,6],[53,4,54,4],[37,1,43,1],[37,2,43,2],[37,3,43,3],[37,4,39,4],[37,5,39,5],[19,1,19,3],[20,4,20,5],[27,3,27,6],[29,1,36,1],[29,2,36,2],[29,3,36,3],[29,4,32,4],[29,5,32,5],[29,6,36,6],[35,4,36,4],[35,5,36,5],[13,6,18,6],[16,4,17,4],[16,5,17,5],[8,1,12,1],[8,2,12,2],[8,3,12,3],[8,4,10,4],[8,5,10,5],[8,6,12,6],[13,1,18,1],[13,2,18,2],[13,3,18,3],[13,4,15,4],[13,5,15,5],[1,3,1,6],[4,1,6,1],[4,2,6,2],[4,3,6,3],[4,4,5,4],[4,5,5,5],[4,6,6,6]]}
[]
[null,null,null,"Application Phase"]
[null,null,null,"Analysis Software","Submission Documents","Document Descriptions","TCAC Scoring Criteria"]
[null,"New Construction","Low-rise"," Energy Pro or Micropas Residential T-24 compliance *","CF-1R: Certificate of Compliance-Residential and .bld or .mp8 file ","The CF-1R summarizes the minimum energy performance specifications needed for compliance, including the results of the heating and cooling load calculations. The Standards require that a certificate of compliance be included on the plans. CEC approved performance ACM software automatically generates CF-1R forms.","CF1R\nPercent better than standard (T-24)"]
[null,"New Construction","High-Rise","Energy Pro Non-Residential T-24 compliance *","Non-Residential Performance T-24 Form (PERF-1C) and .bld file","The PERF-1C summarizes the minimum energy performance specifications needed for compliance, including the results of the heating and cooling load calculations. The Standards require that a certificate of compliance be included on the plans.  CEC approved performance ACM software automatically generates PERF-1 forms.","PERF-1C\nPercent better than standard (T-24)"]
[]
[null,null,null,null,"Other applicable compliance forms, as needed","Other compliance forms may be required depending upon the specific measures in your project.  Please refer to the Nonresidential Compliance Manual, Appendix A (http://www.energy.ca.gov/2008publications/CEC-400-2008-017/rev1_appendices/NRCM_Appendix_A.pdf)"]
[]
[null,"Rehabs","Low-Rise","EnergyPro (Residential Performance)","ECON-2 and .bld file ","ECON-2 summarizes the TDV and the recommended measures.  If a two model approach is taken submission should include 2 ECON-2's and 2 .bld files.  The .bld files are for TCAC QA review purposes.","ECONn 2\nimprovement in TDV  (ktbu/sq ft/yr)"]
[]
[]
[null,null,null,null,"Audit Report (HERCC Protocols)**","Audit report showing estimated energy consumptions with existing measures and proposed improvements."]
[null,null,null,null,"Project Plans for existing conditions","Documentation showing project title, address, developer, and building plans.  Building plans for existing conditions should have unit and floor plans, elevation views, dimensions and window callouts.  Plans are not required for the proposed condition at this stage."]
[null,"Rehabs","High-Rise","EnergyPro (Non-Res Performance) ","ECON-2 and .bld file ","ECON-2 summarizes the kWh and therms of the model.  If a two model approach is taken submission should include 2 ECON-2's and 2 .bld files.  The .bld files are for TCAC QA review purposes.","ECON 2\nImprovement in annual total therm and kWh (Auditor to convert values to combined annual btus to show improvement in kbtu/yr)"]
[]
[]
[null,null,null,null,"Audit Report (HERCC Protocols)**","Audit report showing estimated energy consumptions with existing measures and proposed improvements."]
[]
[null,null,null,null,"Project Plans for existing conditions","Documentation showing project title, address, developer, and building plans.  Building plans for existing conditions should have unit and floor plans, elevation views, dimensions and window callouts.  Plans are not required for the proposed condition at this stage."]
[null,"All Projects",null,null,"CalGreen","CalGreen Mandatory Measures Checklist","Mandatory Measure Checklist"]
[null,null,null,null,"For All Projects Going through Green Building Rating Programs (Application Phase)"]
[null,null,null,null,"Rating System","Submission Document"]
[null,null,null,null,"GreenPoint Rating ","Initial Green Point Rating Checklist"]
[null,null,null,null,"LEED","Initial LEED Checklist"]
[null,null,null,null,"Enterprise Green Communities","Initial Green Communities Checklist"]
[]
[]
[null,null,null,"As-Built/Placed-in-Service Phase"]
[null,null,null,"Analysis Software","Submission Documents","Document Descriptions","TCAC Scoring Criteria"]
[null,"New Construction","Low-rise","Energy Pro or Micropas Residential T-24 compliance *","\"As-built\" (PIS) CF-1R: Certifcate of Compliance-Residential and.bld or .mp8 file","The CF-1R forms at Placed in Service must reflect the (as-built) test-out conditions.  The CF-1R summarizes the minimum energy performance specifications needed for compliance, including the results of the heating and cooling load calculations. The Standards require that a certificate of compliance be included on the plans. CEC-approved performance ACM software automatically generates CF-1R forms.  CF-1R forms must reflect test-out (as-built) conditions. The consultant preparing the \"as-built\" energy model shall meet the minimum qualifications and be responsible for verifying that all the energy efficiency measures have been met, including verification of installation certificates (CF-6R forms) and field verification certificates (CF-4R forms)","CF1R\nPercent better than standard (T-24)"]
[]
[]
[]
[null,null,null,null,"Project Plans","Documentation showing project title, address, developer, and building plans.  Building plans should have unit and floor plans, elevation views, dimensions and window callouts.  Plan set should also include, Mechanical, Electrical, Plumbing, and Landscape plans."]
[null,null,null,null,"Equipment Specifications","Specifications for the installed equipment showing mechanical/HVAC efficiencies (SEER, EER, AFUE, and/or HSPF), duct insulation, window specifications (U-factor and SHGC), and water heater properties (size in gallons, fuel type, and energy factor)."]
[null,null,null,null,"Bills of lading for the appliances","Delivery verification of appliances to the project address.  Invoices specifying the appliances and the project are also acceptable."]
[]
[null,"New Construction","High-Rise","Energy Pro Non-Residential T-24 compliance*","\"As-built\" (PIS) Non-Residential Performance T-24 Form (Perf-1C) and .bld file ","The PERF-1C forms at Placed in Service must reflect the (as-built) test-out conditions.  The Perf-1C summarizes the minimum energy performance specifications needed for compliance, including the results of the heating and cooling load calculations. The Standards require that a certificate of compliance be included on the plans. CEC approved performance ACM software automatically generates PERF-1C forms. The consultant preparing the \"as-built\" energy model shall meet the minimum qualifications and be responsible for verifying that all the energy efficiency measures have been met, including verification of the required acceptance testing forms","Perf-1C\nPercent better than standard (T-24)"]
[]
[]
[null,null,null,null,"Project Plans","Documentation showing project title, address, developer, and building plans.  Building plans should have unit and floor plans, elevation views, dimensions and window callouts.  Plan set should also include, Mechanical, Electrical, Plumbing, and Landscape plans."]
[null,null,null,null,"Equipment Specifications","Specifications for the installed equipment verifying mechanical/HVAC efficiencies (SEER, EER, AFUE, and/or HSPF), duct insulation, window specifications (U-factor and SHGC), and water heater properties (size in gallons, fuel type, and energy factor)."]
[null,null,null,null,"Bills of lading for the appliances","Delivery verification of appliances to the address of the project.  Invoices specifying the appliances and the project are also acceptable."]
[]
[]
[null,"Rehabs","Low-Rise","EnergyPro (Residential Performance)","\"As-built\" (PIS) ECON-2 and.bld file ","ECON-2 summarizes the TDV and the recommended measures.  If a two model approach is taken submission should include 2 ECON-2's and 2 .bld files.  The .bld files are for TCAC QA review purposes.   The ECON-2 forms at Placed in Service must reflect the \"as-built\" test-out conditions.  The consultant preparing the \"as-built\" energy model shall meet the minimum qualifications and be responsible for verifying that all the energy efficiency measures have been met, including verification of installation certificates (CF-6R forms) and field verification certificates (CF-4R forms)","Econ 2\nimprovement in TDV (ktbu/sq ft/yr)"]
[]
[]
[]
[]
[null,null,null,null,"Summary of installed measures & statement of completion","This summary will include the list of all measures that installed and verified and the final total energy savings projections based on test-out conditions."]
[null,null,null,null,"Project Plans","Documentation showing project title, address, developer, and building plans.  Building plans should have unit and floor plans, elevation views, dimensions and window callouts.  Plan set should also include, Mechanical, Electrical, Plumbing, and Landscaping plans."]
[null,null,null,null,"Equipment Specifications","Specifications for the installed equipment verifying mechanical/HVAC efficiencies (SEER, EER, AFUE, and/or HSPF), duct insulation, window specifications (U-factor and SHGC), and water heater properties (size in gallons, fuel type, and energy factor)."]
[null,null,null,null,"Bills of lading for the appliances","Delivery verification of appliances to the address of the project.  Invoices specifying the appliances and the project are also acceptable."]
[]
[null,"Rehabs","High-Rise","EnergyPro (Non-Res Performance)","\"As-built\" (PIS) ECON-2 and.bld file ","ECON-2 summarizes the kWh and therms.  If a two model approach is taken submission should include 2 ECON-2's and 2 .bld files.  The .bld files are for TCAC QA review purposes.  The ECON-2 forms at Placed in Service must reflect the \"as-built\" test-out conditions. The consultant preparing the \"as-built\" energy model shall meet the minimum qualifications and be responsible for verifying that all the energy efficiency measures have been met, including verification of the required acceptance testing forms","Econ 2\nImprovement in annual total therm and kWh (Auditor to convert values to combined annual btus to show improvement in kbtu/yr)"]
[]
[]
[]
[null,null,null,null,"Summary of installed measures & statement of completion","This summary will include the list of all measures that installed and verified and the final total energy savings projections based on test-out conditions."]
[]
[null,null,null,null,"Project Plans","Documentation showing project title, address, developer, and building plans.  Building plans should have unit and floor plans, elevation views, dimensions and window callouts.  Plan set should also include, Mechanical, Electrical, Plumbing, and Landscaping plans."]
[null,null,null,null,"Equipment Specifications","Specifications for the installed equipment verifying mechanical/HVAC efficiencies (SEER, EER, AFUE, and/or HSPF), duct insulation, window specifications (U-factor and SHGC), and water heater properties (size in gallons, fuel type, and energy factor)."]
[null,null,null,null,"Bills of lading for the appliances","Delivery verification of appliances to the address of the project.  Invoices specifying the appliances and the project are also acceptable."]
[]
[null,"All Projects",null,null,"CalGreen","CalGreen Mandatory Measures Checklist","Mandatory Measure Checklist"]
[null,null,null,null,"For All Projects Going through Green Building Rating Programs (Application Phase)"]
[null,null,null,null,"Rating System","Submission Document"]
[null,null,null,null,"GreenPoint Rating ","Green Point Rating Label"]
[null,null,null,null,"LEED","LEED Label"]
[null,null,null,null,"Enterprise Green Communities","Green Communities Label "]
[null,"* Or other CEC approved compliance program"]
[null,"**Audit report shall be per MF HERCC protocol or official whole-building performance based program including Utility, Weatherization Assistance Program, Local Government or GreenPoint Rated Existing Home Multifamily"]

{"sheet":"Rehab Verification Quals Final","index":7,"n_rows":44,"n_cols":5,"rows_kept":44,"cut":false,"hidden":false,"merged":[[16,3,16,4],[2,1,3,1],[2,2,3,2],[2,3,3,3],[2,4,3,4],[4,1,5,1],[4,2,5,2],[4,3,5,3],[5,4,6,4]]}
[]
[null,"Task","New Minimum Qualification","                 Alternative Min. Qualification                                        (Approved by the Executive Director on a case-by-case basis)","Additional Recommended Qualifications for building owner to consider/follow up on"]
[null,"Whole Building Energy Audit, Recommendations and Utility Data Analysis","CA Existing Building Multifamily Upgrade Training ","Alternative Min. Qualification: Meet requirements of CA EMF training petition procedure similar to BIG/HMG process; TCAC Executive Director to make final determination/approval.\n\nhttp://builditgreen.org/GPR-prerequisites-eligibility/","Tier 1:  At least a PE, CEM, BPI Multifamily Building Analyst"]
[]
[null,"Energy Modeling","California Association of Building Energy Consultants (CABEC) Certified Energy Plans Examiner (CEPE) (Nonres CEPE for HR MF and Res CEPE for low-rise MF.) and a HERS II Rater. The consultant preparing the \"as-built\" energy model shall be responsible for verifying that all the energy efficiency measures have been met, including verification of installation certificates (CF-6R forms) and field verification certificates (CF-4R forms) for Low-rise and required acceptance testing forms for High-rise","N/A","Tier 2:  A HERS II rater, 3 years experience in MF buildings, GPR EH MF Rater, CEPE (res or non res)"]
[null,null,null,null,"Recommended questions for building owner to ask auditor:\n1.  How many buildings have you audited?\n2.  How many buildings like mine?\n3.  What are typical savings that you find/predict?\n4.  How much of the recommended work is typically acted on?\n5.  Can I see three sample reports from your previous jobs?\n6.  Can I have three references?"]
[null,"Third-Party Verification ","HERS II Rater","N/A"]
[null,"Commissioning and retrocommissioning (required for some HR measures; good practice for some others)","Commissioning - Meet requirements of BIG or Cal Green (*see below)\nhttp://www.documents.dgs.ca.gov/bsc/CALGreen/Non-Res-Comm-Guide-10-10.pdf, OR                                                                                                                                   Person or Firm doing the commissioning must be on the approved list with the California Commissioning Collaborative <http://www.cacx.org/resources/selecting.html>   The Cx agent does not have to be an independent third party.","Commissioning or Retro Commissioing Certification from one of the following certifying bodies:  Association of Energy Engineers, AABC Commissioning Group, ASHRAE, National Environmental Balancing Bureau, Testing Adjusting and Balancing Bureau or University of Wisconsin-Madison","See California Commissioning Collaborative's \"How to Select a Cx Provider\"\nhttp://www.cacx.org/resources/selecting.html"]
[null,"Combustion appliance safety","BPI Building Analyst  or HERS Building Performance Contractor","N/A","N/A"]
[null,"Feasibility of renewable energy installation","CSI Approved Contractor (C-46 Solar Contractor license)","N/A","N/A"]
[null,"Renewable energy inspection/verification","HERS Rater with PV qualification from HERS Provider","N/A","N/A"]
[null,"Operations and maintenance","BPI Multifamily Building Operator or NAHMA Green Building Operator","N/A","N/A"]
[null,"CUAC Analysis"," California Association of Building Energy Consultants (CABEC) Certified Energy Plans Examiner (CEPE), AND either HERS Rater or CA Licensed Engineer","N/A","N/A"]
[null,"Green Point Rating","Build It Green Certified Multifamily Green Point Rater","N/A","N/A"]
[null,"CalGreen Compliance","HERS II or Multifamily Green Point Rater","N/A","N/A"]
[]
[null,null,null,"Commissioning Qualifications from CalGreen"]
[null,null,null,"Selecting Trained Personnel for (Commissioning)"]
[null,null,null,"This code requires that “Commissioning shall be performed in accordance with this section by"]
[null,null,null,"trained personnel with experience on projects of comparable size and complexity.” The trained"]
[null,null,null,"personnel manage and facilitate the commissioning process. The trained personnel develop and"]
[null,null,null,"implement the commissioning tasks and documentation identified in sections 5.410.2.1 through"]
[null,null,null,"5.410.2.7. Trained personnel may include appropriate members of owner staff, contractor and"]
[null,null,null,"design team as well as independent commissioning professionals."]
[null,null,null,"It is essential that there is a single person designated to lead and manage the commissioning"]
[null,null,null,"activities. In practice, this individual has been referenced by various identifiers such as"]
[null,null,null,"commissioning authority, agent, provider, coordinator, lead, etc. In this guide the term"]
[null,null,null,"“commissioning coordinator” is used."]
[null,null,null,"The designated commissioning coordinator may be an independent third-party commissioning"]
[null,null,null,"professional, a project design team member (e.g. engineer or architect), an owner’s engineer or"]
[null,null,null,"facility staff, contractor or specialty sub-contractor. Methods of evaluating the designated"]
[null,null,null,"commissioning coordinator and trained personnel include review of the following:"]
[null,null,null,"1. Technical knowledge"]
[null,null,null,"2. Relevant experience"]
[null,null,null,"3. Potential conflict of interest concerns"]
[null,null,null,"4. Professional certifications and training"]
[null,null,null,"5. Communication and organizational skills"]
[null,null,null,"6. Reference and sample work products"]
[null,null,null,"Selection of “trained”, qualified personnel is required by this Code. In order to meet this"]
[null,null,null,"requirement, the commissioning provider should be evaluated via the methods discussed above."]
[null,null,null,"In addition, various organizations have training and certification programs that may be a source"]
[null,null,null,"for identification of qualified commissioning providers."]
[null,null,null,"For information about enforcement and compliance of each commissioning element see sections"]
[null,null,null,"5.410.2.1 through 5.410.2.7."]

{"sheet":"NC Verification Quals","index":8,"n_rows":13,"n_cols":4,"rows_kept":13,"cut":false,"hidden":false,"merged":[[3,1,4,1],[5,1,12,1]]}
[]
[null,"Verification Team Profesisional Qualifications for New Construction"]
[null,"Applicability","Task","Minimum Qualification"]
[null,"Required for all Multifamily Projects","Energy Modeling","California Association of Building Energy Consultants (CABEC) Certified Energy Plans Examiner (CEPE) (Nonres CEPE for high-rise MF and Res CEPE for low-rise MF). The consultant preparing the \"as-built\" energy model shall be responsible for verifying that all the energy efficiency measures have been met, including verification of installation certificates (CF-6R forms) and field verification certificates (CF-4R forms) for Low-rise and required acceptance testing forms for High-rise"]
[null,null,"Verification","HERS Rater "]
[null,"Required depending on scope","HVAC system efficiency and balancing (including duct testing)","California Field Verification and Diagnostic Testing Rater (one level of HERS Rater)"]
[null,null,"Central domestic water heating and distribution system efficiency","C-36 plumbing or C-4 boiler contractor license for renovation recommendations and all installation, and HERS Rater for verification"]
[null,null,"Commissioning (required for some HR measures; good practice for many others)","Trained Contractor, Commissioning Agent accredited through CEC approved program."]
[null,null,"Water, IAQ and resources measures","GreenPoint Rated Multifamily Rater "]
[null,null,"Combustion appliance safety","BPI Analyst"]
[null,null,"Renewable energy installation","CSI Approved Contractor (C-46 Solar Contractor license)"]
[null,null,"Renewable energy inspection/verification","HERS Rater with PV qualification from HERS Provider"]
[null,null,"Operations and maintenance","BPI Multifamily Building Operator or NAHMA Green Building Operator"]